Workbook

Sheet Uproszczony model taryfy
E4: Uproszczony model taryfy EuRoPol GAZ s.a. *)
H5: Proszę nacisnąć przycisk (< lub >)
E6: Przychód docelowy ***) | F6: PLN | G6: =I6*1000000 -> 971732639.5 | I6: =Dane!D5/1000 -> 971.7326395 | J6: =G6/Dane!D5/1000 -> 1 | K6: **)
E7: Udział przychodów ENTRY w przychodzie regulowanym | F7: % | G7: =Dane!E21/100 -> 0.5151680952
E9: Zdolności zakontraktowane w punkcie ENTRY Kondratki | F9: MWh/rok | G9: =I9*1000000 -> 343514018.8 | I9: =I11+I12 -> 343.5140188 | J9: =I9/Dane!D10*1000000 -> 1 | K9: **)
E10: Zdolności zakontraktowane w punktach EXIT:
E11: EXIT Mallnow | F11: MWh/rok | G11: =I11*1000000 -> 313274018.8 | I11: =Dane!D12/1000000 -> 313.2740188 | J11: =I11/Dane!D12*1000000 -> 1 | K11: **)
E12: EXIT PWP | F12: MWh/rok | G12: =I12*1000000 -> 30240000 | I12: =Dane!D11/1000000 -> 30.24 | J12: =I12/Dane!D11*1000000 -> 1 | K12: **)
E13: Ceny referencyjne (stawki opłat przesyłowych):
E14: punkt Kondratki | F14: PLN/MWh/d/d | G14: =Dane!E17 -> 1.4573 | H14: gr/kWh/h/h | I14: =G14/10 -> 0.14573 | J14: =G14/Dane!D17 -> 1 | K14: **)
E15: punkt PWP | F15: PLN/MWh/d/d | G15: =Dane!E18 -> 0.4825 | H15: gr/kWh/h/h | I15: =G15/10 -> 0.04825 | J15: =G15/Dane!D18 -> 1 | K15: **)
E16: punkt Mallnow | F16: PLN/MWh/d/d | G16: =Dane!E19 -> 1.4573 | H16: gr/kWh/h/h | I16: =G16/10 -> 0.14573 | J16: =G16/Dane!D19 -> 1 | K16: **)
E18: *) dane różne od założeń do kalkulacji cen referencyjnych w taryfie zatwierdzonej na rok 2022 mają charakter hipotetyczny (do symulacji zmian taryfy w stosunku do taryfy zatwierdzonej przez Prezesa URE)
E19: **) założenia wg taryfy zatwierdzonej przez Prezesa URE = 100%
E20: ***) przychód regulowany zatwierdzony przez Prezesa URE z wyłączeniem przychodów z tytułu usług rewersowych

Sheet Dane (hidden)
A1: Uproszczony model taryfy EuRoPol GAZ s.a. - dane
A3: L.p. | B3: Dane do obliczenia cen referencyjnych | C3: Jedn. | D3: Przesył w kierunku podstawowym
D4: Dane do Taryfy 2022 | E4: Symulacja (w żótych polach dane importowane z zakładki: uproszczony model taryfy)
A5: 1 | B5: Przychód kalkulacyjny, w tym: | C5: tys. zł | D5: =D6+D7 -> 971732.6395 | E5: ='Uproszczony model taryfy'!I6*1000 -> 971732.6395
A6: 1.1 | B6: za przesył Kondratki - Mallnow | C6: tys. zł | D6: 913073.3312 | E6: =Kalkulacja!E30 -> 913073.3312
A7: 1.2 | B7: za przesył Kondratki - PWP | C7: tys. zł | D7: 58659.30824 | E7: =Kalkulacja!E27 -> 58659.30824
A8: 1.3 | B8: suma opłat za wejscie do systemu | C8: tys. zł | D8: 500605.653 | E8: =Kalkulacja!E25+Kalkulacja!E28 -> 500605.653
A9: 1.4 | B9: suma opłat za wyjście z systemu | C9: tys. zł | D9: 471126.9865 | E9: =Kalkulacja!E26+Kalkulacja!E29 -> 471126.9865
A10: 2 | B10: Moc zakontraktowana na wejściu Kondratki po przeliczeniu 98,5%) | C10: MWh/rok | D10: =D11+D12 -> 343514018.8 | E10: =E11+E12 -> 343514018.8
A11: 3 | B11: Moc zakontraktowana na wyjściu PWP | C11: MWh/rok | D11: 30240000 | E11: ='Uproszczony model taryfy'!I12*1000000 -> 30240000
A12: 4 | B12: Moc zakontraktowanana na wyjściu Mallnow (po przeliczeniu 98,5%) | C12: MWh/rok | D12: 313274018.8 | E12: ='Uproszczony model taryfy'!I11*1000000 -> 313274018.8
A13: 5 | B13: Moc zakontraktowana na wejściu Mallnow 1) | C13: MWh/rok | D13: 0 | E13: 0
A14: 6 | B14: Odległość Kondratki-PWP (średnioważona) 2) | C14: km | D14: =(581.6*1.18+367.4*1.7)/2.88 -> 455.1625 | E14: =D14 -> 455.1625
A15: 7 | B15: Odległość Kondratki-Mallnow | C15: km | D15: 683.9 | E15: =D15 -> 683.9
A16: 8 | B16: Stawki opłaty za wejście lub wyjście (ceny referencyjne)
A17: 8.1 | B17: Punkt Kondratki | C17: zł/MWh/d/d lub zł/MWh/h/h | D17: 1.4573 | E17: =ROUND(Kalkulacja!E23,4) -> 1.4573
A18: 8.2 | B18: Punkt PWP | C18: zł/MWh/d/d lub zł/MWh/h/h | D18: 0.4825 | E18: =ROUND(Kalkulacja!E24,4) -> 0.4825
A19: 8.3 | B19: Punkt Mallnow | C19: zł/MWh/d/d lub zł/MWh/h/h | D19: 1.4573 | E19: =ROUND(Kalkulacja!E22,4) -> 1.4573
A20: 9 | B20: Podział przychodów WE/WY
A21: 9.1 | B21: Udział przychodów za wejście do systemu | C21: % | D21: =D8/D5*100 -> 51.51680952 | E21: =E8/E$5*100 -> 51.51680952
A22: 9.1 | B22: Udział przychodów za wyjście z systemu | C22: % | D22: =D9/D5*100 -> 48.48319048 | E22: =E9/E$5*100 -> 48.48319048
A23: Uwagi:
A24: 1) | B24: W scenariuszu przepływu gazu w SGT założonym w RPM nie przewiduje się w fizycznego przepływu gazu w kierunku przeciwnym do podstawowego i kontraktowania w punkcie Mallnow usług długoterminowych na zasadach ciągłych dla tego przesyłu (przychód kalkulacyjny w poz. 1 został pomniejszony o szacowane przychody z tytułu rewersu)
A25: 2) | B25: Założono stałą proporcję wielkości przesyłu do punktów fizycznych: 59,03% do Włocławka; 40,97% do Lwówka (zgodnie z RPM)

Sheet Kalkulacja (hidden)
A1: Kalkulacja cen referencyjnych (stawek przesyłowych dla uslug długoterminowych na zasadach ciągłych)
B2: Lp | C2: Wyszczególnienie | D2: j.m. | E2: 2022
A3: Podstawa kalkulacji stawek | B3: =COUNT(#REF!)+1 -> 1 | C3: Przychód kalkulacyjny (podstawa kalkulacji cen ref.) 1) | D3: tys. PLN | E3: =Dane!E5 -> 971732.6395
A4: Moce zamówione i jednostki kalkulacyjne do podziału kosztów kalkulacyjnych | B4: =COUNT(B$3:B3)+1 -> 2 | C4: Moc zamówiona w punkcie wejścia w Kondratkach (przeliczeniowa, po uwzgl. udziału 98,5% w opłatach) | D4: MWh/rok | E4: =E5+E6 -> 343514018.8
B5: =COUNT(B$3:B4)+1 -> 3 | C5: Moc zamówiona w punkcie wyjścia w PWP | D5: MWh/rok | E5: =Dane!E11 -> 30240000
B6: =COUNT(B$3:B5)+1 -> 4 | C6: Moc zamówiona w punkcie wyjścia Mallnow (przeliczeniowa, po uwzgl. udziału 98,5% w opłatach) | D6: MWh/rok | E6: =Dane!E12 -> 313274018.8
B7: =COUNT(B$3:B6)+1 -> 5 | C7: Moc zamówiona ogółem (przeliczeniowa) | D7: MWh/rok | E7: =E4 -> 343514018.8
B8: =COUNT(B$3:B7)+1 -> 6 | C8: Jedn. kalk. do podziału kosztów - przesył Kondratki - PWP | D8: MWh/km | E8: =Dane!E11*Dane!E14/100 -> 137641140
B9: =COUNT(B$3:B8)+1 -> 7 | C9: Jedn. kalk. do podziału kosztów - przesył Kondratki - Mallnow (przeliczeniowe, po uwzgl 98%) | D9: MWh/km | E9: =Dane!E12*Dane!E15/100 -> 2142481014
B10: =COUNT(B$3:B9)+1 -> 8 | C10: Jednostki kalk. do podziału kosztów na pkt we/wy ogółem | D10: tys.m3/100km | E10: =SUM(E8:E9) -> 2280122154
B11: =COUNT(B$3:B10)+1 -> 9 | C11: ="Udział kosztów zapewnienia przesyłu Kondratki PWP (poz."&B8&"/poz."&B$10&")" -> Udział kosztów zapewnienia przesyłu Kondratki PWP (poz.6/poz.8) | D11: % | E11: =IF(E$10>0,E8/E$10,"") -> 0.06036568687
B12: =COUNT(B$3:B11)+1 -> 10 | C12: ="Udział kosztów zapewnienia przesyłu Kondratki - Mallnow (poz."&B9&"/poz."&B$10&")" -> Udział kosztów zapewnienia przesyłu Kondratki - Mallnow (poz.7/poz.8) | D12: % | E12: =IF(E$10>0,E9/E$10,"") -> 0.9396343131
B13: =COUNT(B$3:B12)+1 -> 11 | C13: Suma udziałów | D13: % | E13: =SUM(E11:E12) -> 1
A14: Alokacja kosztów kalkulacyjnych do poszczególnych punktów SGT | B14: 12 | C14: Koszty kalkulacyjne przesyłu Kondratki - PWP | D14: tys. PLN | E14: =E$3*E11 -> 58659.30824
B15: 13 | C15: Koszty kalkulacyjne przesyłu Kondratki - Mallnow | D15: tys. PLN | E15: =E$3*E12 -> 913073.3312
B16: 14 | C16: Suma kosztów kalkulacyjnych (sprawdzenie) | D16: tys. PLN | E16: =E14+E15 -> 971732.6395 | F16: =E16=E3 -> TRUE
B17: 15 | C17: Koszty alokowane do punktu Mallnow (50% pozycji 13) | D17: tys. PLN | E17: =0.5*E15 -> 456536.6656
B18: 16 | C18: Część kosztów przesyłu Kondratki - PWP alokowana do pkt Kondratki | D18: tys. PLN | E18: =E5*E22/1000 -> 44068.98735
B19: 17 | C19: Całość kosztów alokowana do pkt Kondratki (poz. 15 + poz. 16) | D19: tys. PLN | E19: =E17+E18 -> 500605.653
B20: 18 | C20: Część kosztów przesyłu Kondratki - PWP alokowana do pkt PWP (poz. 12 - poz. 16) | D20: tys. PLN | E20: =E14-E18 -> 14590.32089
B21: 19 | C21: Suma kosztów kalkulacyjnych (sprawdzenie: poz. 15 + poz. 17 + poz. 18) | D21: tys. PLN | E21: =E17+E19+E20 -> 971732.6395 | F21: =E16=E21 -> TRUE
A22: Stawki taryfowe w PLN | B22: 20 | C22: Stawka w pkt Mallnow (poz. 15*1000/poz. 4) | D22: PLN/MWh/d/d | E22: =E17*1000/E6 -> 1.457307783
B23: =COUNT(B$3:B22)+1 -> 21 | C23: Stawka w pkt Kondratki (poz. 17*1000/poz.2) | D23: PLN/MWh/d/d | E23: =E19*1000/E4 -> 1.457307783
B24: =COUNT(B$3:B23)+1 -> 22 | C24: Stawka w pkt PWP (poz. 18*1000/poz. 3) | D24: PLN/MWh/d/d | E24: =E20*1000/E5 -> 0.4824841566
A25: Uszczegółowienie przychodów kalkulacyjnych EuRoPol GAZ s.a. | B25: =COUNT(B$3:B24)+1 -> 23 | C25: Przychody kalkulacyjne za przesył Kondratki - PWP; opłata za wejście w Kondratkach | D25: tys. PLN | E25: =E5*E23/1000 -> 44068.98735 | F25: =E18=E25 -> TRUE
B26: =COUNT(B$3:B25)+1 -> 24 | C26: Przychody kalkulacyjne za przesył Kondratki - PWP; opłata za wyjście w PWP | D26: tys. PLN | E26: =E5*E24/1000 -> 14590.32089
B27: =COUNT(B$3:B26)+1 -> 25 | C27: Opłaty za przesył Kondratki - PWP | D27: tys. PLN | E27: =E25+E26 -> 58659.30824 | F27: =E14=E27 -> TRUE
B28: =COUNT(B$3:B27)+1 -> 26 | C28: Przychody kalkulacyjne za przesył Kondratki - Mallnow; opłata za wejście w Kondratkach | D28: tys. PLN | E28: =E6*E23/1000 -> 456536.6656
B29: =COUNT(B$3:B28)+1 -> 27 | C29: Przychody kalkulacyjne za przesył Kondratki - Mallnow; opłata za wyjście w Mallnow | D29: tys. PLN | E29: =E6*E22/1000 -> 456536.6656
B30: =COUNT(B$3:B29)+1 -> 28 | C30: Opłaty za przesył Kondratki - Mallnow | D30: tys. PLN | E30: =E28+E29 -> 913073.3312 | F30: =E27+E30 -> 971732.6395
B31: 1) | C31: Równy bazie kosztowej ogółem do kalkulacji cen referencyjnych (przychody regulowane za przesył gazu w kierunku podst.ogółem, bez rewersu)
